bitfinex-derivatives/quotes_SOLF0:USTF0_20240829
["timestamp","ask_amount","ask_price","bid_price","bid_amount"]
[1724959124175,3.62435848,140.02,139.98,3.571]
[1724959124384,3.62435848,140.02,139.97,3.50101992]
[1724959124385,0.05435848,140.02,139.95,34.28]
[1724959125183,3.5703,140.01,139.97,3.5712]
[1724959126391,3.62455848,140.02,139.98,3.5709]
[1724959126885,3.5704,140.01,139.97,3.56388088]
[1724959127083,3.5704,140.01,139.95,34.28]
[1724959127284,0.05435848,140.02,139.95,34.28]
[1724959127489,3.5705,140.0,139.96,3.5714]
[1724959127682,0.05435848,140.02,139.95,37.83388602]
[1724959127882,0.0544487,140.0,139.95,37.83388602]
[1724959128095,0.0544487,140.0,139.97,3.5711]
[1724959128395,0.0544487,140.0,139.95,37.83388602]
[1724959130595,0.0544487,140.0,139.97,3.5712]
[1724959131091,0.0544487,140.0,139.95,37.83388602]
[1724959132394,0.0544487,140.0,139.98,3.5708]
[1724959133588,0.0544487,140.0,139.99,3.5707]
[1724959136091,0.0544487,140.0,139.95,3.55388602]
[1724959136395,0.0544487,140.0,139.94,32.124]
[1724959136797,0.0544487,140.0,139.98,3.5708]
[1724959137199,0.0544487,140.0,139.99,3.5707]
[1724959137399,0.0544487,140.0,139.94,35.76605495]
[1724959137595,0.0544487,140.0,139.96,27.42]
[1724959137898,0.0544487,140.0,139.99,3.5707]
[1724959138798,27.42,140.05,140.01,3.57]
[1724959138799,3.5692,140.05,140.01,3.57]
[1724959139001,3.5692,140.05,140.02,3.53674876]
[1724959139501,3.5692,140.05,139.98,27.42]
[1724959139502,3.5695,140.04,139.98,27.42]
[1724959139698,372.2061,140.09,140.02,3.5699]
[1724959139895,3.569,140.06,140.04,0.04674786]
[1724959140495,3.5692,140.05,140.04,0.04674786]
[1724959140899,0.04629451,140.07,140.04,0.04674786]
[1724959141296,3.61519451,140.07,140.04,0.04674786]
[1724959141502,0.04629451,140.07,140.04,0.04674786]
[1724959141701,27.46629451,140.07,140.04,0.04674786]
[1724959142000,3.5692,140.05,140.04,0.04674786]
[1724959143004,3.5699,140.03,139.99,3.5706]
[1724959143309,27.42,140.05,139.99,3.5706]
[1724959143709,27.42,140.05,139.98,3.5709]
[1724959144011,27.42,140.03,139.98,3.5709]
[1724959144211,3.5707,140.0,139.97,3.5712]
[1724959144706,3.5707,140.0,139.94,34.50075495]
[1724959144908,0.05003527,139.98,139.94,31.06205495]
[1724959145610,0.05003527,139.98,139.96,3.5714]
[1724959146310,0.05003527,139.98,139.97,3.5713]
[1724959146508,27.42,140.05,139.97,3.5713]
[1724959146712,29.9575,140.07,139.99,27.42]
[1724959146908,2.5375,140.07,140.01,27.42]
[1724959147303,2.5375,140.07,140.03,3.5697]
[1724959147610,0.05089828,140.06,140.04,0.05339744]
[1724959148512,0.05089828,140.06,139.99,7.28]
[1724959148513,18.05395467,140.0,139.99,10.8507]
[1724959148811,3.5676,140.12,139.99,75.76]
[1724959149111,4.879,140.13,140.06,3.5687]
[1724959149309,4.879,140.13,140.06,3.59844891]
[1724959149505,0.04766624,140.11,140.04,34.24]
[1724959149702,3.5682,140.1,140.01,34.24]
[1724959149902,4.879,140.13,140.01,34.24]
[1724959149903,0.04735946,140.07,140.01,34.24]
[1724959150313,0.04735946,140.07,140.05,3.5691]
[1724959150508,0.04735946,140.07,140.06,3.51707964]
[1724959150900,0.04735946,140.07,140.06,3.569]
[1724959151207,0.04735946,140.07,140.06,7.08104479]
[1724959152905,4.879,140.13,140.09,3.568]
[1724959153211,2.4989,140.15,140.06,37.75204479]
[1724959153409,2.4989,140.15,140.09,3.568]
[1724959153806,38.9692,140.18,140.08,34.24]
[1724959154005,0.04915085,140.14,140.12,0.05169814]
[1724959154312,0.04915085,140.14,140.13,3.60414593]
[1724959154513,0.04915085,140.14,140.13,7.17124593]
[1724959155011,0.04915085,140.14,140.12,3.63693684]
[1724959155207,0.04915085,140.14,140.12,0.05169814]
[1724959156513,0.04915085,140.14,140.12,3.61909814]
[1724959156807,0.04915085,140.14,140.12,0.05169814]
[1724959158307,0.04915085,140.14,140.13,3.5672]
[1724959161100,0.04915085,140.14,140.12,3.61899814]
[1724959161507,0.04915085,140.14,140.12,0.05169814]
[1724959161916,3.5672,140.13,140.12,0.05169814]
[1724959162808,3.5672,140.13,140.04,34.24]
[1724959162809,0.04915085,140.14,140.04,34.24]
[1724959163007,34.24,140.15,140.04,34.24]
[1724959163207,34.24,140.15,140.09,3.568]
[1724959163407,3.5672,140.13,140.09,3.568]
[1724959163608,34.24,140.15,140.08,3.58670992]
[1724959163808,0.05284085,140.13,140.04,41.48]
[1724959164006,0.04958991,140.1,140.08,3.5683]
[1724959164208,0.04958991,140.1,140.08,7.0993142]
[1724959165614,0.04958991,140.1,140.09,3.5682]
[1724959166217,0.04958991,140.1,140.09,7.20766321]
[1724959166413,0.04958991,140.1,140.09,3.5682]
[1724959167016,0.04958991,140.1,140.09,7.05961604]
[1724959169214,0.04958991,140.1,140.09,3.49141604]
[1724959169414,0.04958991,140.1,140.06,34.24]
[1724959169711,0.04958991,140.1,140.06,3.54421358]
[1724959169912,0.04958991,140.1,140.05,41.48]
[1724959170218,0.04958991,140.1,140.06,27.42]
[1724959170417,0.04958991,140.1,140.07,3.56755406]
[1724959170918,0.04958991,140.1,140.08,3.5684]
[1724959172021,0.04958991,140.1,140.09,3.5682]
[1724959172529,0.04958991,140.1,140.06,30.99611619]
[1724959172715,0.04958991,140.1,140.06,3.57611619]
[1724959172915,0.04958991,140.1,140.04,27.42]
[1724959173322,3.61768991,140.1,140.04,27.42]
[1724959174224,0.04958991,140.1,140.04,27.42]
[1724959175722,0.04958991,140.1,140.06,27.42]
[1724959175920,0.04958991,140.1,140.06,30.98531124]
[1724959176117,0.04958991,140.1,140.07,3.5685]
[1724959177022,0.04958991,140.1,140.08,3.5684]
[1724959177525,0.04958991,140.1,140.07,3.5686]
[1724959177726,0.04958991,140.1,140.06,27.42]
[1724959178035,0.04958991,140.1,140.06,31.07174834]
[1724959178823,0.04958991,140.1,140.07,3.5687]
[1724959179422,3.61758991,140.1,140.06,7.22064834]
[1724959179617,3.61758991,140.1,140.06,3.5689]
[1724959179833,0.04958991,140.1,140.04,27.42]
[1724959182023,0.04958991,140.1,140.06,3.5688]
[1724959182223,0.04958991,140.1,140.06,3.5126083]
[1724959182423,0.04958991,140.1,140.04,27.42]
[1724959182835,3.61758991,140.1,140.04,27.42]
[1724959183032,0.04958991,140.1,140.02,35.78]
[1724959183234,0.04958991,140.1,139.99,3.48852902]
[1724959183235,27.46958991,140.1,140.0,27.42]
[1724959183428,0.04858804,140.06,140.0,27.42]
[1724959183922,0.04858804,140.06,140.0,34.66]
[1724959185827,0.04858804,140.06,140.05,3.5692]
[1724959187134,335.0,140.16,140.05,34.64]
[1724959187334,42.0859,140.19,140.1,27.42]
[1724959187540,42.0859,140.19,140.11,3.62622871]
[1724959187837,42.0859,140.19,140.01,2.401]
[1724959187838,27.42,140.13,140.06,3.61409608]
[1724959188144,3.5684,140.09,140.08,0.04858804]
[1724959188534,30.988,140.1,140.08,0.04858804]
[1724959190142,30.988,140.1,140.05,3.5692]
[1724959190648,3.5682,140.09,140.05,3.5692]
[1724959190836,27.42,140.1,139.99,3.48852902]
[1724959191140,27.42,140.1,139.98,34.64]
[1724959191341,0.05386018,140.05,140.02,3.5698]
[1724959191743,0.05386018,140.05,140.03,3.5695]
[1724959192138,0.05386018,140.05,140.0,27.42]
[1724959192543,0.05386018,140.05,140.03,3.5696]
[1724959195342,0.05386018,140.05,140.02,3.5699]
[1724959197641,0.05386018,140.05,140.03,3.5697]
[1724959198149,0.05386018,140.05,140.04,3.5695]
[1724959200254,0.05386018,140.05,140.0,27.42]
[1724959200646,0.05386018,140.05,140.02,27.42]
[1724959201043,0.05386018,140.05,140.04,3.5695]
[1724959201744,7.4459,140.12,140.08,3.5684]
[1724959201945,7.13740982,140.11,140.07,3.54440805]
[1724959202150,7.4459,140.12,140.06,27.42]
[1724959202451,7.4459,140.12,140.08,27.42]
[1724959202452,4.9511,140.12,140.08,27.42]
[1724959202651,335.0,140.16,140.08,27.42]
[1724959202951,0.05068996,140.13,140.12,3.5674]
[1724959203143,0.05068996,140.13,140.11,0.05052093]
[1724959204852,0.05068996,140.13,140.12,3.5674]
[1724959205952,4.6301,140.2,140.16,3.5664]
[1724959206747,4.6301,140.2,140.17,3.51028524]
[1724959206943,4.68216924,140.2,140.17,0.05295179]
[1724959207344,3.5657,140.19,140.17,0.05295179]
[1724959207750,4.6301,140.2,140.12,27.42]
[1724959208144,27.42,140.19,140.1,34.64]
[1724959208860,0.04629043,140.16,140.13,0.05159835]
[1724959209559,2.53639043,140.16,140.13,0.05159835]
[1724959210056,6.10279043,140.16,140.13,0.05159835]
[1724959210246,2.53639043,140.16,140.13,0.05159835]
[1724959211052,27.42,140.15,139.98,3.57902305]
[1724959211254,27.42,140.13,140.04,34.64]
[1724959211456,27.42,140.13,140.04,27.42]
[1724959211959,0.05457728,140.1,140.04,27.42]
[1724959212465,0.05457728,140.1,140.08,3.5684]
[1724959212653,0.05457728,140.1,140.09,3.63596074]
[1724959212858,0.04999478,140.11,140.06,27.42]
[1724959213358,0.04999478,140.11,140.09,3.5682]
[1724959213555,0.04999478,140.11,140.06,31.04454261]
[1724959213959,0.04999478,140.11,140.07,27.42]
[1724959214154,0.04999478,140.11,140.09,27.42]
[1724959214354,0.04733902,140.11,140.09,30.92857723]
[1724959214759,0.04733902,140.11,140.1,3.5679]
[1724959219166,2.4901,140.16,140.13,3.5671]
[1724959219668,6.0271,140.18,140.13,3.5671]
[1724959220164,0.04675584,140.17,140.14,0.04509755]
[1724959220568,0.04675584,140.17,140.15,27.42]
[1724959221166,0.04675584,140.17,140.16,3.5664]
[1724959221369,7.6351,140.25,140.15,27.42]
[1724959221565,7.6351,140.25,140.19,27.42]
[1724959221762,7.6351,140.25,140.19,31.03290082]
[1724959222064,5.1346,140.25,140.19,31.03290082]
[1724959222263,0.05391341,140.23,140.21,0.04897115]
[1724959222861,0.05391341,140.23,140.21,3.61387115]
[1724959223069,0.05391341,140.23,140.21,0.04897115]
[1724959226672,3.61871341,140.23,140.21,0.04897115]
[1724959227876,0.05391341,140.23,140.21,0.04897115]
[1724959229682,3.61861341,140.23,140.21,0.04897115]
[1724959230168,0.05391341,140.23,140.21,0.04897115]
[1724959230671,0.05391341,140.23,140.21,34.27897115]
[1724959230873,5.3614,140.29,140.21,34.27897115]
[1724959231170,5.3614,140.29,140.24,34.23]
[1724959231369,5.3614,140.29,140.25,3.564]
[1724959231370,8.9247,140.29,140.25,3.564]
[1724959232075,0.05248564,140.28,140.26,0.05248076]
[1724959232576,0.05248564,140.28,140.22,41.41]
[1724959232577,0.05248564,140.28,140.22,7.18]
[1724959232775,3.564,140.26,140.22,3.5649]
[1724959233178,0.05248564,140.28,140.2,34.23]
[1724959233380,5.3614,140.29,140.24,3.5643]
[1724959233581,0.04495525,140.28,140.25,0.05017909]
[1724959233779,3.5638,140.27,140.25,0.05017909]
[1724959235381,3.5636,140.27,140.25,0.05017909]
[1724959235580,0.04495525,140.28,140.25,0.05017909]
[1724959235984,0.04495525,140.28,140.2,34.23]
[1724959236172,34.27495525,140.28,140.2,3.51455917]
[1724959236372,7.18,140.27,140.19,3.59652516]
[1724959236576,34.23,140.28,140.17,34.23]
[1724959237082,0.05118175,140.24,140.22,3.5647]
[1724959237284,0.04503471,140.24,140.22,3.61004842]
[1724959237580,0.04503471,140.24,140.22,0.04534842]
[1724959237784,0.04503471,140.24,140.22,3.60160333]
[1724959238183,0.04503471,140.24,140.22,7.16650333]
[1724959238486,0.04503471,140.24,140.22,7.1121211]
[1724959238677,0.04503471,140.24,140.22,3.61024842]
[1724959238986,0.04503471,140.24,140.22,7.22368203]
[1724959239483,0.04503471,140.24,140.22,3.61024842]
[1724959239680,0.04503471,140.24,140.22,7.23116695]
[1724959239880,0.04503471,140.24,140.22,0.04534842]
[1724959240087,3.60943471,140.24,140.22,0.04534842]
[1724959240485,0.04503471,140.24,140.22,0.04534842]
[1724959240685,3.5646,140.23,140.22,0.04534842]
[1724959240884,0.04503471,140.24,140.22,0.04534842]
[1724959241484,0.04503471,140.24,140.23,3.5646]
[1724959242183,335.0,140.28,140.26,3.5638]
[1724959242388,2.5005,140.3,140.25,34.23]
[1724959242389,3.563,140.3,140.25,34.23]
[1724959242685,2.6691,140.33,140.25,34.23]
[1724959242892,3.5627,140.31,140.25,34.23]
[1724959243192,3.5627,140.31,140.27,0.04855717]
[1724959243193,0.05170094,140.29,140.27,0.04855717]
[1724959243688,0.05170094,140.29,140.27,34.27855717]
[1724959244586,0.05170094,140.29,140.28,3.5634]
[1724959244791,0.05170094,140.29,140.28,7.08133357]
[1724959245985,0.05170094,140.29,140.28,34.46133357]
[1724959247895,6.2313,140.33,140.28,34.46133357]
[1724959248088,6.2313,140.33,140.3,27.38]
[1724959249097,6.28400675,140.33,140.3,27.42917393]
[1724959250998,3.5624,140.32,140.3,27.42917393]
[1724959252606,3.5623,140.32,140.3,0.04917393]
[1724959252795,2.72180675,140.33,140.3,0.04917393]
[1724959253694,3.5626,140.31,140.3,0.04917393]
[1724959254396,2.6691,140.33,140.26,27.38]
[1724959254699,30.0491,140.33,140.25,3.564]
[1724959254997,2.6691,140.33,140.25,3.564]
[1724959255194,30.0491,140.33,140.26,3.5639]
[1724959255395,0.05273038,140.31,140.28,0.05299354]
[1724959256298,3.5632,140.29,140.28,0.05299354]
[1724959257700,3.5637,140.27,140.24,3.5642]
[1724959257995,27.38,140.32,140.23,27.38]
[1724959257996,10.65227648,140.31,140.23,27.38]
[1724959258602,10.65227648,140.31,140.26,0.0399166]
[1724959258603,0.05408552,140.28,140.26,0.0399166]
[1724959259200,3.5636,140.27,140.26,0.0399166]
[1724959259699,3.5636,140.27,140.23,27.38]
[1724959259700,3.5641,140.25,140.23,27.38]
[1724959259895,0.05408552,140.28,140.21,27.38]
[1724959260104,27.38,140.3,140.21,27.38]
[1724959260404,27.38,140.28,140.19,27.38]
[1724959260610,5.0303,140.27,140.19,30.85450623]
[1724959260807,3.5648,140.23,140.2,3.5654]
[1724959261601,0.05310389,140.24,140.19,30.85450623]
[1724959261803,0.05310389,140.24,140.19,3.47450623]
[1724959262014,0.05310389,140.24,140.16,27.38]
[1724959262205,0.05310389,140.24,140.17,3.566]
[1724959262401,0.05310389,140.24,140.17,7.21186826]
[1724959263103,3.5655,140.2,140.17,7.21186826]
[1724959263304,3.61513025,140.2,140.17,7.21186826]
[1724959264322,0.04963025,140.2,140.17,7.21186826]
[1724959266413,0.04963025,140.2,140.18,3.5658]
[1724959267414,0.04963025,140.2,140.1,9.1992]
[1724959267617,0.05126705,140.16,140.11,27.38]
[1724959268418,0.05126705,140.16,140.09,30.88857723]
[1724959269917,3.567,140.14,140.1,3.5679]
[1724959270217,0.05126705,140.16,140.09,30.88857723]
[1724959270407,3.61709951,140.14,140.09,34.45657723]
[1724959270821,0.04999951,140.14,140.09,30.88857723]
[1724959271011,0.04999951,140.14,140.11,27.38]
[1724959271509,0.04999951,140.14,140.11,30.9475]
[1724959271910,0.04999951,140.14,140.09,3.50857723]
[1724959272112,0.04999951,140.14,140.07,27.38]
[1724959272315,0.04999951,140.14,140.07,30.86357603]
[1724959274921,3.5676,140.12,140.08,3.5684]
[1724959275214,27.38,140.13,140.07,3.48357603]
[1724959275422,0.04618474,140.11,140.06,3.5689]
[1724959275622,0.04618474,140.11,140.05,30.96095782]
[1724959275914,0.04618474,140.11,140.07,27.38]
[1724959276115,0.04618474,140.11,140.06,3.5689]
[1724959276320,0.04618474,140.11,140.06,7.12595623]
[1724959276617,3.61398474,140.11,140.06,7.12595623]
[1724959276823,0.04618474,140.11,140.06,7.12595623]
[1724959277023,0.04618474,140.11,140.06,3.55705623]
[1724959277216,3.568,140.1,140.04,27.38]
[1724959277415,0.04618474,140.11,140.05,3.5692]
[1724959277621,0.04703771,140.09,140.05,3.5692]
[1724959277814,3.61523771,140.09,140.05,3.5692]
[1724959278011,0.04703771,140.09,140.05,3.5692]
[1724959278919,0.04703771,140.09,140.05,27.38]
[1724959279117,3.61523771,140.09,140.05,27.38]
[1724959279721,3.61523771,140.09,140.05,30.9492]
[1724959280525,3.5685,140.08,140.03,27.38]
[1724959280825,0.04703771,140.09,140.01,27.38]
[1724959281028,0.05089303,140.06,140.04,3.5693]
[1724959281224,0.05089303,140.06,140.03,27.38]
[1724959282420,0.05089303,140.06,140.04,3.5693]
[1724959283321,0.05089303,140.06,140.05,3.5692]
[1724959288028,9.9171,140.14,140.04,27.38]
[1724959288325,9.9171,140.14,140.07,27.38]
[1724959288731,2.7971,140.14,140.07,27.38]
[1724959289130,0.05184871,140.11,140.09,0.05089303]
[1724959289436,0.05184871,140.11,140.1,3.51046756]
[1724959289821,0.05184871,140.11,140.1,3.5679]
[1724959290024,0.05184871,140.11,140.1,7.14437391]
[1724959290432,7.9223,140.19,140.1,3.57647391]
[1724959290733,100.0,140.2,140.16,27.38]
[1724959290924,100.0,140.2,140.17,3.5661]
[1724959291430,100.0,140.2,140.17,3.61145281]
[1724959291431,100.04496614,140.2,140.17,3.61145281]
[1724959291626,100.04496614,140.2,140.17,0.04535281]
[1724959295034,3.5659,140.19,140.17,0.04535281]
[1724959295229,100.04496614,140.2,140.17,0.04535281]
[1724959295528,3.5656,140.19,140.17,0.04535281]
[1724959295824,100.04496614,140.2,140.17,0.04535281]
[1724959296228,3.5659,140.18,140.17,0.04535281]
[1724959296640,100.04496614,140.2,140.17,0.04535281]
[1724959296833,103.61056614,140.2,140.17,0.04535281]
[1724959297235,100.04496614,140.2,140.18,3.54284554]
[1724959297530,100.04496614,140.2,140.17,0.04535281]
[1724959297738,100.04496614,140.2,140.17,3.61145281]
[1724959298136,100.04496614,140.2,140.18,3.5638872]
[1724959298531,100.04496614,140.2,140.17,3.61145281]
[1724959298839,100.04496614,140.2,140.18,3.5658]
[1724959299041,100.04496614,140.2,140.19,3.57101997]
[1724959300031,100.04496614,140.2,140.18,3.5658]
[1724959300234,100.04496614,140.2,140.19,7.18765555]
[1724959300630,100.04496614,140.2,140.19,3.5656]
[1724959300843,100.04496614,140.2,140.19,7.0439713]
[1724959301033,343.0994,140.28,140.19,3.4783713]
[1724959301339,27.38,140.4,140.25,27.38]
[1724959301340,3.563,140.3,140.25,27.38]
[1724959301545,346.78382585,140.34,140.26,3.5638]
[1724959301737,3.5628,140.31,140.26,3.5638]
[1724959302242,0.04919814,140.3,140.27,0.04513007]
[1724959302445,0.04919814,140.3,140.27,3.65969836]
[1724959302939,3.61209814,140.3,140.27,3.65969836]
[1724959303543,3.5633,140.29,140.27,0.04513007]
[1724959304634,3.5634,140.28,140.27,0.04513007]
[1724959305036,0.04919814,140.3,140.27,0.04513007]
[1724959305337,0.04919814,140.3,140.27,3.54824875]
[1724959305935,3.61219814,140.3,140.27,3.54824875]
[1724959307147,3.5632,140.29,140.27,0.04513007]
[1724959308335,3.5634,140.28,140.27,0.04513007]
[1724959312451,3.5632,140.29,140.27,3.54054548]
[1724959312643,0.04919814,140.3,140.27,3.54054548]
[1724959313839,0.04919814,140.3,140.27,30.92054548]
[1724959314240,0.04919814,140.3,140.27,7.10404548]
[1724959314450,0.04919814,140.3,140.27,3.54054548]
[1724959314752,0.04919814,140.3,140.28,3.5632]
[1724959315849,0.04919814,140.3,140.27,7.10404548]
[1724959316642,0.04919814,140.3,140.28,3.5633]
[1724959318245,0.04919814,140.3,140.27,30.92054548]
[1724959318846,0.04919814,140.3,140.29,3.5631]
[1724959319056,0.04919814,140.3,140.29,30.9431]
[1724959319558,0.04919814,140.3,140.29,3.5631]
[1724959320446,0.04919814,140.3,140.27,3.54054548]
[1724959321056,0.04919814,140.3,140.27,7.10394548]
[1724959322051,3.61209814,140.3,140.27,7.10394548]
[1724959322251,0.04919814,140.3,140.28,3.5633]
[1724959322455,0.04919814,140.3,140.27,30.92054548]
[1724959323349,0.04919814,140.3,140.29,30.9431]
[1724959324151,335.0,140.37,140.29,27.38]
[1724959324356,89.82820398,140.38,140.32,27.38]
[1724959325262,0.050156,140.36,140.34,27.43306587]
[1724959325466,0.050156,140.36,140.34,27.43211793]
[1724959326354,0.050156,140.36,140.34,30.99381793]
[1724959326759,0.050156,140.36,140.34,0.05211793]
[1724959327055,0.050156,140.36,140.3,3.56913713]
[1724959327354,3.562,140.34,140.29,7.17995858]
[1724959327559,3.562,140.34,140.27,27.38]
[1724959327760,27.38,140.37,140.29,27.38]
[1724959328057,0.04864741,140.34,140.32,0.04937998]
[1724959329462,3.61054741,140.34,140.32,0.04937998]
[1724959330559,3.61054741,140.34,140.26,7.08]
[1724959330560,3.5621,140.33,140.27,27.38]
[1724959330763,2.6014,140.33,140.28,3.59661557]
[1724959331262,6.1637,140.33,140.28,7.15981557]
[1724959331760,2.6014,140.33,140.29,0.05370369]
[1724959333262,3.5625,140.32,140.29,0.05370369]
[1724959333565,3.5625,140.32,140.29,3.52828813]
[1724959333757,3.5625,140.32,140.29,0.05370369]
[1724959335860,6.1636,140.33,140.29,0.05370369]
[1724959336061,2.6014,140.33,140.29,0.05370369]
[1724959336567,0.04864741,140.34,140.31,27.38]
[1724959336868,5.3638,140.43,140.33,27.38]
[1724959337064,3.5599,140.42,140.37,3.5609]
[1724959337258,27.38,140.39,140.16,14.2649]
[1724959337456,27.38,140.37,140.27,27.38]
[1724959337659,0.04637727,140.33,140.31,0.04955214]
[1724959337860,0.04637727,140.33,140.31,0.05323215]
[1724959338670,0.04637727,140.33,140.32,3.5623]
[1724959344567,5.3266,140.4,140.32,27.38]
[1724959344957,335.0,140.42,140.29,8.2749]
[1724959345261,2.6887,140.44,140.39,27.38]
[1724959345561,0.0466978,140.43,140.41,27.38]
[1724959345961,30.1367,140.49,140.41,27.38]
[1724959346364,30.1367,140.49,140.44,3.5592]
[1724959346564,3.5584,140.48,140.41,30.94506734]
[1724959347169,0.05119138,140.46,140.43,0.05449544]
[1724959347664,2.84499138,140.46,140.43,0.05449544]
[1724959347872,30.22499138,140.46,140.39,3.529819]
[1724959348061,30.22499138,140.46,140.37,27.38]
[1724959348062,2.7587,140.45,140.37,27.38]
[1724959348567,3.5594,140.44,140.39,3.5604]
[1724959348869,0.05355353,140.43,140.4,0.05083288]
[1724959349063,0.05355353,140.43,140.4,3.61103288]
[1724959349370,0.05355353,140.43,140.4,0.05083288]
[1724959350064,3.61325353,140.43,140.4,0.05083288]
[1724959350664,0.05355353,140.43,140.4,3.61113288]
[1724959351069,0.05355353,140.43,140.4,0.05083288]
[1724959351268,3.5598,140.42,140.4,0.05083288]
[1724959352571,3.5601,140.41,140.4,0.05083288]
[1724959352773,3.5601,140.41,140.37,3.561]
[1724959352774,0.05355353,140.43,140.36,3.5796123]
[1724959352980,27.38,140.42,140.31,9.0839]
[1724959353271,362.38,140.44,140.37,27.38]
[1724959353477,362.38,140.44,140.38,3.61200537]
[1724959353675,0.04584778,140.42,140.4,0.04525851]
[1724959354175,3.5601,140.41,140.4,0.04525851]
[1724959355275,0.04584778,140.42,140.35,27.38]
[1724959355983,3.5605,140.4,140.36,3.5611]
[1724959356178,3.5605,140.4,140.37,0.05203787]
[1724959356681,27.38,140.41,140.37,0.05203787]
[1724959356869,2.8126,140.39,140.37,0.05203787]
[1724959357074,3.5608,140.38,140.37,0.05203787]
[1724959357772,2.86400052,140.39,140.37,0.05203787]
[1724959358270,6.42470052,140.39,140.37,0.05203787]
[1724959358471,2.86400052,140.39,140.37,0.05203787]
[1724959358872,3.5608,140.38,140.37,0.05203787]
[1724959359173,30.24400052,140.39,140.31,27.38]
[1724959359379,30.1926,140.39,140.31,27.38]
[1724959359585,3.5612,140.37,140.33,3.5619]
[1724959360081,0.04977566,140.36,140.34,0.03450588]
[1724959361481,3.5616,140.35,140.34,0.03450588]
[1724959361673,0.04977566,140.36,140.34,0.03450588]
[1724959361869,3.61117566,140.36,140.34,0.03450588]
[1724959363877,0.04977566,140.36,140.34,3.59630588]
[1724959365068,3.61117566,140.36,140.34,0.03450588]
[1724959365786,0.04977566,140.36,140.34,0.03450588]
[1724959366576,3.61107566,140.36,140.34,0.03450588]
[1724959367575,0.04977566,140.36,140.29,27.38]
[1724959368077,3.61117566,140.36,140.33,3.5619]
[1724959368977,0.04977566,140.36,140.31,27.38]
[1724959369275,0.04977566,140.36,140.28,3.61260591]
[1724959369483,0.04977566,140.36,140.27,27.38]
[1724959369672,0.0547617,140.33,140.27,27.38]
[1724959370071,0.0547617,140.33,140.27,31.00734706]
[1724959370481,3.5625,140.32,140.27,31.00734706]
[1724959370677,0.0547617,140.33,140.27,31.00734706]
[1724959372276,3.5624,140.32,140.28,3.5632]
[1724959373178,3.5624,140.32,140.27,30.9435]
[1724959373378,3.5624,140.32,140.27,34.50714003]
[1724959374582,27.4347617,140.33,140.25,3.6046096]
[1724959374780,27.4347617,140.33,140.23,27.38]
[1724959374781,0.05005788,140.3,140.23,27.38]
[1724959374980,0.05005788,140.3,140.26,3.5638]
[1724959374981,3.61305788,140.3,140.26,3.5638]
[1724959375184,3.61305788,140.3,140.26,7.07471398]
[1724959375384,3.61305788,140.3,140.26,3.5638]
[1724959376086,0.05005788,140.3,140.27,3.5634]
[1724959376285,0.05005788,140.3,140.27,3.53442695]
[1724959376488,0.05005788,140.3,140.25,27.38]
[1724959377083,0.05005788,140.3,140.25,30.99992866]
[1724959377590,0.05005788,140.3,140.27,27.38]
[1724959377883,0.05005788,140.3,140.28,3.5632]
[1724959379085,0.05005788,140.3,140.27,27.38]
[1724959379682,0.05005788,140.3,140.28,3.5632]
[1724959380081,0.05005788,140.3,140.27,30.9435]
[1724959380393,0.05005788,140.3,140.25,30.99992866]
[1724959380579,0.05005788,140.3,140.25,27.38]
[1724959381180,0.05005788,140.3,140.26,3.5637]
[1724959381494,0.05005788,140.3,140.25,3.5236379]
[1724959381785,0.05005788,140.3,140.24,27.38]
[1724959381981,0.05005788,140.3,140.24,30.86017578]
[1724959382685,0.05005788,140.3,140.27,3.5636]
[1724959382886,0.05005788,140.3,140.15,5.34409998]
[1724959382887,9.7487066,140.68,140.29,54.76]
[1724959383090,27.38,140.69,140.43,60.97542607]
[1724959383387,27.38,140.69,140.57,27.38]
[1724959383388,27.38,140.67,140.57,27.38]
[1724959383591,8.0832,140.71,140.55,27.38]
[1724959383592,27.38,140.65,140.55,27.38]
[1724959383784,8.0832,140.71,140.59,0.04613516]
[1724959383785,0.05033158,140.61,140.59,0.04613516]
[1724959383986,8.0832,140.71,140.55,27.38]